[Event "FIDE Womens Grand Swiss 2021"]
[Site "Riga"]
[Date "2021.10.29"]
[Round "3.23"]
[White "Rogule, Laura"]
[Black "Cori T., Deysi"]
[Result "1-0"]
[ECO "A86"]
[WhiteElo "2289"]
[BlackElo "2382"]
[Annotator "NA"]
[PlyCount "87"]
[EventDate "2021.10.27"]
[EventType "swiss"]
[EventCountry "LAT"]
[Tiebreak "Cut1 Buchholz+Sonneborn-Berger (Swiss)"]
[SourceTitle "playchess.com"]
[Source "ChessBase"]
[SourceQuality "1"]
[TimeControl "40/6000+30:20/3000+30:900+30"]

1. d4 {[%emt 0:10:03]} f5 {[%emt 0:10:41]} 2. c4 {[%emt 0:00:48]} Nf6 {[%emt 0:
00:02]} 3. g3 {[%emt 0:01:08]} g6 {[%emt 0:00:25]} 4. Bg2 {[%emt 0:00:53]} Bg7
{[%emt 0:00:11]} 5. Nc3 {[%emt 0:01:04]} d6 {[%emt 0:00:33]} 6. d5 {[%emt 0:03:
54]} O-O {[%emt 0:05:34]} 7. Nf3 {[%emt 0:03:02]} c6 {[%emt 0:01:47]} 8. O-O {
[%emt 0:03:47]} e5 {[%emt 0:01:54]} 9. dxe6 {[%emt 0:02:31]} Bxe6 {[%emt 0:01:
40]} 10. b3 {[%emt 0:04:44]} Na6 {[%emt 0:14:38]} 11. Be3 {[%emt 0:07:16]} Qe7
{[%emt 0:08:41]} 12. Nd4 {[%emt 0:20:02]} Bf7 {[%emt 0:13:10]} 13. Qd2 {
[%emt 0:03:33]} Rfe8 {[%emt 0:00:55]} 14. Bh6 {[%emt 0:08:30]} Bh8 {[%emt 0:02:
10]} 15. Rad1 {[%emt 0:02:24]} Nc5 {[%emt 0:01:13]} 16. Qc1 {[%emt 0:08:59]}
Rad8 {[%emt 0:04:59]} 17. Bg5 {[%emt 0:02:08]} Bg7 {[%emt 0:09:48]} 18. h4 {
[%emt 0:06:48]} Ne6 {[%emt 0:03:43]} 19. Nxe6 {[%emt 0:00:27]} Qxe6 {[%emt 0:
00:21]} 20. Rd3 {[%emt 0:03:06]} Rc8 {[%emt 0:06:50]} 21. Qd2 {[%emt 0:04:06]}
Ng4 {[%emt 0:13:16]} 22. e4 {[%emt 0:02:52]} Bxc3 {[%emt 0:04:55]} 23. Rxc3 {
[%emt 0:01:18]} fxe4 {[%emt 0:00:25]} 24. Bh3 {[%emt 0:00:55]} h5 {[%emt 0:00:
41]} 25. f3 {[%emt 0:00:59]} exf3 {[%emt 0:01:25]} 26. Rcxf3 {[%emt 0:03:18]}
Rc7 {[%emt 0:00:45]} 27. Bxg4 {[%emt 0:01:38]} Qxg4 {[%emt 0:01:12]} 28. Qf2 {
[%emt 0:02:41]} Qd7 {[%emt 0:00:36]} 29. Rf6 {[%emt 0:00:57]} b5 {[%emt 0:01:
36]} 30. Qc2 {[%emt 0:00:41]} Qc8 {[%emt 0:00:29]} 31. Rxd6 {[%emt 0:00:23]}
bxc4 {[%emt 0:00:16]} 32. bxc4 {[%emt 0:00:18]} Rd7 {[%emt 0:00:34]} 33. Rdf6 {
[%emt 0:00:28]} Qb8 {[%emt 0:00:20]} 34. Kh2 {[%emt 0:00:48]} Qe5 {[%emt 0:00:
57]} 35. R1f2 {[%emt 0:00:39]} Re6 {[%emt 0:00:25]} 36. R6f3 {[%emt 0:00:34]}
Qe1 {[%emt 0:00:49]} 37. Bd2 {[%emt 0:00:29]} Qe4 {[%emt 0:00:27]} 38. Qb3 {
[%emt 0:00:35]} Re8 {[%emt 0:00:34]} 39. Qb2 {[%emt 0:00:42]} Qxc4 {[%emt 0:00:
29]} 40. Bh6 {[%emt 0:00:20]} Rd4 {[%emt 0:00:31]} 41. Rxf7 {[%emt 0:50:19]}
Rxh4+ {[%emt 0:20:33]} 42. Kg2 {[%emt 0:00:00]} Qd5+ {[%emt 0:01:00]} 43. R7f3
{[%emt 0:00:00]} Rd4 {[%emt 0:00:28]} 44. Qb7 {[%emt 0:00:00]} 1-0

[Event "FIDE Womens Grand Swiss 2021"]
[Site "Riga"]
[Date "2021.10.29"]
[Round "3.24"]
[White "Golsta, Madara"]
[Black "Houska, Jovanka"]
[Result "1/2-1/2"]
[ECO "B13"]
[WhiteElo "2003"]
[BlackElo "2381"]
[Annotator "NA"]
[PlyCount "118"]
[EventDate "2021.10.27"]
[EventType "swiss"]
[EventCountry "LAT"]
[Tiebreak "Cut1 Buchholz+Sonneborn-Berger (Swiss)"]
[SourceTitle "playchess.com"]
[Source "ChessBase"]
[SourceQuality "1"]
[TimeControl "40/6000+30:20/3000+30:900+30"]

1. e4 {[%emt 0:10:04]} c6 {[%emt 0:10:13]} 2. d4 {[%emt 0:00:12]} d5 {[%emt 0:
00:14]} 3. exd5 {[%emt 0:00:20]} cxd5 {[%emt 0:00:05]} 4. c4 {[%emt 0:00:35]}
Nf6 {[%emt 0:00:50]} 5. Nc3 {[%emt 0:00:19]} Nc6 {[%emt 0:03:45]} 6. Nf3 {
[%emt 0:00:23]} Bg4 {[%emt 0:05:00]} 7. Be3 {[%emt 0:00:40]} e6 {[%emt 0:01:20]
} 8. c5 {[%emt 0:01:29]} Be7 {[%emt 0:09:14]} 9. Bb5 {[%emt 0:03:16]} O-O {
[%emt 0:00:25]} 10. h3 {[%emt 0:00:47]} Bxf3 {[%emt 0:09:57]} 11. Qxf3 {
[%emt 0:00:22]} Nd7 {[%emt 0:00:03]} 12. O-O {[%emt 0:05:22]} Bf6 {[%emt 0:05:
12]} 13. Rfd1 {[%emt 0:05:33]} g6 {[%emt 0:00:33]} 14. a3 {[%emt 0:04:27]} Bg7
{[%emt 0:00:15]} 15. b4 {[%emt 0:01:30]} a6 {[%emt 0:03:13]} 16. Bxc6 {[%emt 0:
08:15]} bxc6 {[%emt 0:00:04]} 17. a4 {[%emt 0:00:28]} e5 {[%emt 0:24:57]} 18.
Rab1 {[%emt 0:16:06]} Re8 {[%emt 0:05:50]} 19. Ne2 {[%emt 0:11:34]} f5 {
[%emt 0:05:48]} 20. b5 {[%emt 0:05:57]} axb5 {[%emt 0:01:47]} 21. axb5 {
[%emt 0:00:09]} Qc8 {[%emt 0:13:26]} 22. bxc6 {[%emt 0:02:52]} Qxc6 {[%emt 0:
00:03]} 23. dxe5 {[%emt 0:00:18]} Nxe5 {[%emt 0:01:39]} 24. Qxd5+ {[%emt 0:02:
01]} Qxd5 {[%emt 0:00:04]} 25. Rxd5 {[%emt 0:00:06]} Nc4 {[%emt 0:00:01]} 26.
c6 {[%emt 0:06:27]} Rac8 {[%emt 0:01:26]} 27. Rc5 {[%emt 0:06:27]} Nxe3 {
[%emt 0:03:22]} 28. fxe3 {[%emt 0:00:07]} Rxe3 {[%emt 0:02:20]} 29. Kf1 {
[%emt 0:01:39]} Re6 {[%emt 0:02:42]} 30. c7 {[%emt 0:01:13]} Kf7 {[%emt 0:00:
59]} 31. Nf4 {[%emt 0:01:26]} Re5 {[%emt 0:00:11]} 32. Rc6 {[%emt 0:02:03]} g5
{[%emt 0:00:51]} 33. Rb8 {[%emt 0:09:01]} Ree8 {[%emt 0:00:06]} 34. Rxc8 {
[%emt 0:00:10]} Rxc8 {[%emt 0:00:03]} 35. Nd5 {[%emt 0:00:19]} Be5 {[%emt 0:00:
04]} 36. Rh6 {[%emt 0:01:19]} Kg7 {[%emt 0:01:29]} 37. Re6 {[%emt 0:00:12]} Bg3
{[%emt 0:00:15]} 38. Rc6 {[%emt 0:01:14]} h5 {[%emt 0:00:52]} 39. Ke2 {[%emt 0:
02:44]} h4 {[%emt 0:00:07]} 40. Kf3 {[%emt 0:01:41]} Be5 {[%emt 0:00:26]} 41.
Re6 {[%emt 0:23:40]} Bg3 {[%emt 0:23:11]} 42. Re7+ {[%emt 0:01:31]} Kg6 {
[%emt 0:08:01]} 43. Rd7 {[%emt 0:01:11]} Kh5 {[%emt 0:00:06]} 44. Rd8 {[%emt 0:
02:11]} Rxc7 {[%emt 0:00:04]} 45. Nxc7 {[%emt 0:01:00]} Bxc7 {[%emt 0:01:12]}
46. Rd5 {[%emt 0:01:10]} Kg6 {[%emt 0:00:07]} 47. Rc5 {[%emt 0:00:31]} Bg3 {
[%emt 0:01:27]} 48. Rc6+ {[%emt 0:01:13]} Kh5 {[%emt 0:05:16]} 49. Rc5 {
[%emt 0:02:10]} Kg6 {[%emt 0:00:08]} 50. Rb5 {[%emt 0:00:09]} Bc7 {[%emt 0:01:
52]} 51. Rb7 {[%emt 0:00:12]} Bg3 {[%emt 0:00:06]} 52. Ra7 {[%emt 0:00:14]} Kh6
{[%emt 0:01:47]} 53. Ra8 {[%emt 0:00:46]} Kg6 {[%emt 0:00:35]} 54. Rg8+ {
[%emt 0:00:17]} Kf6 {[%emt 0:00:05]} 55. Ke3 {[%emt 0:00:35]} Ke5 {[%emt 0:01:
34]} 56. Rg6 {[%emt 0:01:03]} Bf4+ {[%emt 0:01:28]} 57. Kf3 {[%emt 0:00:21]}
Bd2 {[%emt 0:01:12]} 58. Rg8 {[%emt 0:00:46]} Bf4 {[%emt 0:00:29]} 59. Ra8 {
[%emt 0:00:58]} Bd2 {[%emt 0:01:44]} 1/2-1/2

[Event "FIDE Womens Grand Swiss 2021"]
[Site "Riga"]
[Date "2021.10.29"]
[Round "3.25"]
[White "February, Jesse Nikki"]
[Black "Hoang, Thanh Trang"]
[Result "0-1"]
[ECO "C02"]
[WhiteElo "1857"]
[BlackElo "2380"]
[Annotator "NA"]
[PlyCount "71"]
[EventDate "2021.10.27"]
[EventType "swiss"]
[EventCountry "LAT"]
[Tiebreak "Cut1 Buchholz+Sonneborn-Berger (Swiss)"]
[SourceTitle "playchess.com"]
[Source "ChessBase"]
[SourceQuality "1"]
[TimeControl "40/6000+30:20/3000+30:900+30"]

1. e4 {[%emt 0:10:06]} e6 {[%emt 0:10:17]} 2. d4 {[%emt 0:00:18]} d5 {[%emt 0:
00:12]} 3. e5 {[%emt 0:00:15]} c5 {[%emt 0:00:55]} 4. c3 {[%emt 0:00:09]} Qb6 {
[%emt 0:03:44]} 5. Nf3 {[%emt 0:00:49]} Bd7 {[%emt 0:01:00]} 6. a3 {[%emt 0:02:
15]} Bb5 {[%emt 0:04:56]} 7. b4 {[%emt 0:01:44]} cxd4 {[%emt 0:01:39]} 8. Bxb5+
{[%emt 0:02:23]} Qxb5 {[%emt 0:00:20]} 9. cxd4 {[%emt 0:00:23]} Nd7 {[%emt 0:
06:31]} 10. Nc3 {[%emt 0:01:09]} Qc6 {[%emt 0:03:29]} 11. Bd2 {[%emt 0:01:40]}
Nb6 {[%emt 0:01:38]} 12. O-O {[%emt 0:01:12]} Ne7 {[%emt 0:02:55]} 13. Qe2 {
[%emt 0:09:30]} Nc4 {[%emt 0:04:31]} 14. Rfc1 {[%emt 0:04:08]} Nc8 {[%emt 0:06:
36]} 15. a4 {[%emt 0:04:44]} Qd7 {[%emt 0:07:58]} 16. Nd1 {[%emt 0:10:55]} Be7
{[%emt 0:03:44]} 17. Ne3 {[%emt 0:06:31]} Nxe3 {[%emt 0:03:56]} 18. fxe3 {
[%emt 0:02:31]} Nb6 {[%emt 0:01:13]} 19. e4 {[%emt 0:03:35]} O-O {[%emt 0:05:
07]} 20. a5 {[%emt 0:03:05]} dxe4 {[%emt 0:01:17]} 21. Qxe4 {[%emt 0:02:15]}
Nd5 {[%emt 0:00:36]} 22. Ra3 {[%emt 0:13:47]} Rac8 {[%emt 0:01:59]} 23. Rxc8 {
[%emt 0:07:17]} Rxc8 {[%emt 0:00:20]} 24. Ng5 {[%emt 0:01:01]} Bxg5 {[%emt 0:
02:21]} 25. Bxg5 {[%emt 0:00:17]} Qc6 {[%emt 0:08:09]} 26. Ra1 {[%emt 0:09:41]}
h6 {[%emt 0:02:59]} 27. Bd2 {[%emt 0:05:16]} Qc2 {[%emt 0:00:58]} 28. Qe1 {
[%emt 0:02:24]} Qb2 {[%emt 0:04:48]} 29. Kh1 {[%emt 0:01:16]} Qxd4 {[%emt 0:01:
04]} 30. Rd1 {[%emt 0:00:13]} Qg4 {[%emt 0:01:13]} 31. h3 {[%emt 0:00:32]} Qg6
{[%emt 0:01:56]} 32. Rc1 {[%emt 0:00:52]} Rc2 {[%emt 0:01:26]} 33. Rxc2 {
[%emt 0:03:15]} Qxc2 {[%emt 0:00:07]} 34. Kh2 {[%emt 0:00:32]} a6 {[%emt 0:01:
36]} 35. Kg1 {[%emt 0:01:28]} Ne7 {[%emt 0:02:24]} 36. Qe3 {[%emt 0:00:00]} 0-1

[Event "FIDE Womens Grand Swiss 2021"]
[Site "Riga"]
[Date "2021.10.30"]
[Round "4.7"]
[White "Padmini, Rout"]
[Black "Kashlinskaya, Alina"]
[Result "0-1"]
[ECO "A05"]
[WhiteElo "2380"]
[BlackElo "2493"]
[Annotator "RC"]
[PlyCount "70"]
[EventDate "2021.10.27"]
[EventType "swiss"]
[EventCountry "LAT"]
[Tiebreak "Cut1 Buchholz+Sonneborn-Berger (Swiss)"]
[SourceTitle "playchess.com"]
[Source "ChessBase"]
[SourceQuality "1"]
[TimeControl "40/6000+30:20/3000+30:900+30"]

1. Nf3 {[%emt 0:10:20]} Nf6 {[%emt 0:10:06]} 2. g3 {[%emt 0:00:07]} g6 {
[%emt 0:00:06]} 3. Bg2 {[%emt 0:00:10]} Bg7 {[%emt 0:00:15]} 4. O-O {[%emt 0:
00:19]} c5 {[%emt 0:00:25]} 5. d3 {[%emt 0:08:25]} Nc6 {[%emt 0:04:16]} 6. e4 {
[%emt 0:00:38]} d5 {[%emt 0:04:16]} 7. Nbd2 {[%emt 0:07:13]} O-O {[%emt 0:00:
16]} 8. a4 {[%emt 0:01:12]} e5 {[%emt 0:03:42]} 9. Re1 {[%emt 0:02:38]} Re8 {
[%emt 0:01:27]} 10. h3 {[%emt 0:02:04]} h6 {[%emt 0:10:13]} 11. exd5 {[%emt 0:
03:14]} Nxd5 {[%emt 0:00:05]} 12. Nc4 {[%emt 0:00:26]} Ndb4 {[%emt 0:09:55]}
13. Bd2 {[%emt 0:10:20]} Rb8 {[%emt 0:04:42]} 14. Qc1 {[%emt 0:02:54]} Kh7 {
[%emt 0:00:53]} 15. a5 {[%emt 0:08:19]} Qc7 {[%emt 0:01:13]} 16. Re4 {[%emt 0:
03:57]} g5 {[%emt 0:08:46]} 17. c3 {[%emt 0:07:53]} Nxd3 {[%emt 0:06:05]} 18.
Qc2 {[%emt 0:00:10]} f5 {[%emt 0:00:13]} 19. Qxd3 {[%emt 0:01:16]} fxe4 {
[%emt 0:04:05]} 20. Qxe4+ {[%emt 0:00:02]} Kg8 {[%emt 0:02:06]} 21. h4 {
[%emt 0:13:56]} gxh4 {[%emt 0:05:20]} 22. Nxh4 {[%emt 0:00:07]} Be6 {[%emt 0:
02:56]} 23. Nf5 {[%emt 0:02:23]} h5 {[%emt 0:01:14]} 24. a6 {[%emt 0:00:54]}
Rf8 {[%emt 0:08:06]} 25. Nxg7 {[%emt 0:04:04]} Qxg7 {[%emt 0:01:32]} 26. axb7 {
[%emt 0:00:12]} Ne7 {[%emt 0:00:39]} 27. Ne3 {[%emt 0:02:28]} Bd7 {[%emt 0:07:
55]} 28. Ra6 {[%emt 0:03:14]} Bb5 {[%emt 0:04:40]} 29. Re6 {[%emt 0:01:17]}
Rxf2 {[%emt 0:00:15]} 30. Nd5 {[%emt 0:06:39]} Qxg3 {[%emt 0:03:14]} 31. Nxe7+
{[%emt 0:07:36]} Kf7 {[%emt 0:00:05]} 32. Rf6+ {[%emt 0:01:19]} Rxf6 {[%emt 0:
03:07]} 33. c4 {[%emt 0:00:24]} Kxe7 {[%emt 0:00:43]} 34. cxb5 {[%emt 0:00:28]}
Rg6 {[%emt 0:00:25]} 35. Be3 {[%emt 0:00:47]} Qxg2+ {[%emt 0:01:01]} 0-1

[Event "FIDE Womens Grand Swiss 2021"]
[Site "Riga"]
[Date "2021.10.30"]
[Round "4.8"]
[White "Arakhamia-Grant, Ketevan"]
[Black "Badelka, Olga"]
[Result "1/2-1/2"]
[ECO "C54"]
[WhiteElo "2376"]
[BlackElo "2438"]
[Annotator "NA"]
[PlyCount "133"]
[EventDate "2021.10.27"]
[EventType "swiss"]
[EventCountry "LAT"]
[Tiebreak "Cut1 Buchholz+Sonneborn-Berger (Swiss)"]
[SourceTitle "playchess.com"]
[Source "ChessBase"]
[SourceQuality "1"]
[TimeControl "40/6000+30:20/3000+30:900+30"]

1. e4 {[%emt 0:10:05]} e5 {[%emt 0:10:09]} 2. Nf3 {[%emt 0:00:09]} Nc6 {
[%emt 0:00:06]} 3. Bc4 {[%emt 0:00:23]} Bc5 {[%emt 0:00:19]} 4. c3 {[%emt 0:00:
15]} Nf6 {[%emt 0:00:23]} 5. d3 {[%emt 0:00:09]} h6 {[%emt 0:01:09]} 6. Nbd2 {
[%emt 0:00:31]} d6 {[%emt 0:00:25]} 7. Bb3 {[%emt 0:01:19]} O-O {[%emt 0:02:46]
} 8. h3 {[%emt 0:01:43]} d5 {[%emt 0:09:17]} 9. O-O {[%emt 0:00:38]} dxe4 {
[%emt 0:01:02]} 10. dxe4 {[%emt 0:05:24]} a5 {[%emt 0:09:31]} 11. a4 {[%emt 0:
02:21]} Qe7 {[%emt 0:04:26]} 12. Nh4 {[%emt 0:04:04]} Be6 {[%emt 0:00:50]} 13.
Nf5 {[%emt 0:28:44]} Bxf5 {[%emt 0:00:43]} 14. exf5 {[%emt 0:00:06]} e4 {
[%emt 0:01:20]} 15. Nc4 {[%emt 0:00:21]} Ne5 {[%emt 0:07:57]} 16. Bf4 {[%emt 0:
14:59]} Nd3 {[%emt 0:06:01]} 17. Bg3 {[%emt 0:05:03]} Qd7 {[%emt 0:02:46]} 18.
Ne3 {[%emt 0:00:50]} Bd6 {[%emt 0:08:15]} 19. Bh4 {[%emt 0:17:15]} Be5 {
[%emt 0:00:36]} 20. Bxf6 {[%emt 0:02:43]} Bxf6 {[%emt 0:00:17]} 21. Qg4 {
[%emt 0:00:41]} Nc5 {[%emt 0:18:42]} 22. Rad1 {[%emt 0:01:45]} Qe7 {[%emt 0:05:
35]} 23. Nd5 {[%emt 0:01:37]} Qe5 {[%emt 0:00:10]} 24. f4 {[%emt 0:02:51]} Qd6
{[%emt 0:00:05]} 25. Bc2 {[%emt 0:00:37]} Rad8 {[%emt 0:03:21]} 26. Qe2 {
[%emt 0:03:46]} c6 {[%emt 0:00:51]} 27. Ne3 {[%emt 0:01:34]} Nd3 {[%emt 0:00:
35]} 28. Kh1 {[%emt 0:00:31]} Rfe8 {[%emt 0:02:02]} 29. Ng4 {[%emt 0:01:49]} h5
{[%emt 0:07:27]} 30. Nxf6+ {[%emt 0:01:28]} Qxf6 {[%emt 0:00:03]} 31. Qxh5 {
[%emt 0:00:08]} Rd5 {[%emt 0:00:34]} 32. Qe2 {[%emt 0:00:59]} Nxb2 {[%emt 0:00:
26]} 33. Rxd5 {[%emt 0:00:29]} cxd5 {[%emt 0:00:03]} 34. Qb5 {[%emt 0:00:10]}
Rc8 {[%emt 0:03:19]} 35. Qxb2 {[%emt 0:00:40]} Qxc3 {[%emt 0:04:14]} 36. Qxc3 {
[%emt 0:00:38]} Rxc3 {[%emt 0:00:01]} 37. Bd1 {[%emt 0:00:46]} d4 {[%emt 0:00:
05]} 38. Kg1 {[%emt 0:00:37]} e3 {[%emt 0:01:22]} 39. Re1 {[%emt 0:00:49]} Rc1
{[%emt 0:00:06]} 40. Kf1 {[%emt 0:00:55]} d3 {[%emt 0:00:03]} 41. Bf3 {[%emt 0:
25:34]} e2+ {[%emt 0:20:27]} 42. Bxe2 {[%emt 0:00:17]} dxe2+ {[%emt 0:00:04]}
43. Kxe2 {[%emt 0:00:06]} Rc4 {[%emt 0:01:00]} 44. Kf3 {[%emt 0:16:56]} Rxa4 {
[%emt 0:02:29]} 45. Rb1 {[%emt 0:00:36]} Ra3+ {[%emt 0:03:36]} 46. Kg4 {
[%emt 0:03:43]} a4 {[%emt 0:00:39]} 47. Rxb7 {[%emt 0:00:06]} Rb3 {[%emt 0:00:
03]} 48. Ra7 {[%emt 0:00:20]} a3 {[%emt 0:00:04]} 49. Ra8+ {[%emt 0:01:11]} Kh7
{[%emt 0:00:13]} 50. g3 {[%emt 0:00:34]} f6 {[%emt 0:03:39]} 51. h4 {[%emt 0:
00:59]} Rc3 {[%emt 0:00:27]} 52. h5 {[%emt 0:00:33]} Rb3 {[%emt 0:00:05]} 53.
Kh3 {[%emt 0:00:53]} Rc3 {[%emt 0:01:58]} 54. Kh4 {[%emt 0:00:08]} Rf3 {
[%emt 0:04:09]} 55. Kg4 {[%emt 0:00:06]} Rb3 {[%emt 0:00:07]} 56. Kh4 {[%emt 0:
00:04]} Rf3 {[%emt 0:00:04]} 57. h6 {[%emt 0:01:12]} gxh6 {[%emt 0:02:11]} 58.
Ra7+ {[%emt 0:00:23]} Kg8 {[%emt 0:00:07]} 59. g4 {[%emt 0:00:22]} Rb3 {
[%emt 0:11:47]} 60. Kh5 {[%emt 0:00:22]} Rg3 {[%emt 0:00:05]} 61. Kh4 {[%emt 0:
15:33]} Rf3 {[%emt 0:15:58]} 62. Kh5 {[%emt 0:00:34]} Rg3 {[%emt 0:00:04]} 63.
Kxh6 {[%emt 0:02:53]} Rxg4 {[%emt 0:00:12]} 64. Rxa3 {[%emt 0:00:12]} Kf7 {
[%emt 0:01:08]} 65. Ra7+ {[%emt 0:00:08]} Kf8 {[%emt 0:00:17]} 66. Kh5 {
[%emt 0:00:18]} Rg1 {[%emt 0:00:27]} 67. Ra8+ 1/2-1/2

[Event "FIDE Womens Grand Swiss 2021"]
[Site "Riga"]
[Date "2021.10.30"]
[Round "4.9"]
[White "Lujan, Carolina"]
[Black "Zawadzka, Jolanta"]
[Result "0-1"]
[ECO "B56"]
[WhiteElo "2340"]
[BlackElo "2428"]
[Annotator "NA"]
[PlyCount "74"]
[EventDate "2021.10.27"]
[EventType "swiss"]
[EventCountry "LAT"]
[Tiebreak "Cut1 Buchholz+Sonneborn-Berger (Swiss)"]
[SourceTitle "playchess.com"]
[Source "ChessBase"]
[SourceQuality "1"]
[TimeControl "40/6000+30:20/3000+30:900+30"]

1. e4 {[%emt 0:10:06]} c5 {[%emt 0:10:06]} 2. Nf3 {[%emt 0:00:17]} Nc6 {
[%emt 0:00:06]} 3. d4 {[%emt 0:00:19]} cxd4 {[%emt 0:00:05]} 4. Nxd4 {[%emt 0:
00:03]} Nf6 {[%emt 0:00:05]} 5. Nc3 {[%emt 0:00:14]} d6 {[%emt 0:00:05]} 6. g3
{[%emt 0:00:33]} g6 {[%emt 0:00:15]} 7. Bg2 {[%emt 0:00:35]} Nxd4 {[%emt 0:00:
14]} 8. Qxd4 {[%emt 0:00:04]} Bg7 {[%emt 0:00:13]} 9. O-O {[%emt 0:19:46]} O-O
{[%emt 0:00:25]} 10. Qd3 {[%emt 0:01:07]} Nd7 {[%emt 0:02:46]} 11. Nd5 {
[%emt 0:03:28]} e6 {[%emt 0:02:23]} 12. Ne3 {[%emt 0:02:54]} Nc5 {[%emt 0:00:
15]} 13. Qe2 {[%emt 0:13:47]} b6 {[%emt 0:00:40]} 14. e5 {[%emt 0:09:24]} Ba6 {
[%emt 0:01:43]} 15. c4 {[%emt 0:00:20]} Bb7 {[%emt 0:05:41]} 16. Bxb7 {[%emt 0:
13:50]} Nxb7 {[%emt 0:00:07]} 17. exd6 {[%emt 0:00:48]} Nxd6 {[%emt 0:02:36]}
18. Rb1 {[%emt 0:01:14]} Ne4 {[%emt 0:22:09]} 19. Ng4 {[%emt 0:06:02]} f5 {
[%emt 0:02:30]} 20. f3 {[%emt 0:03:02]} fxg4 {[%emt 0:17:19]} 21. Qxe4 {
[%emt 0:02:43]} gxf3 {[%emt 0:03:22]} 22. Qxe6+ {[%emt 0:02:51]} Kh8 {[%emt 0:
00:19]} 23. Bf4 {[%emt 0:01:06]} Qd4+ {[%emt 0:07:36]} 24. Be3 {[%emt 0:04:34]}
Qd3 {[%emt 0:04:05]} 25. Rbd1 {[%emt 0:03:56]} Qe2 {[%emt 0:01:05]} 26. Rd2 {
[%emt 0:00:08]} Rae8 {[%emt 0:01:03]} 27. Rxe2 {[%emt 0:01:27]} Rxe6 {[%emt 0:
00:09]} 28. Ree1 {[%emt 0:00:21]} Bxb2 {[%emt 0:02:44]} 29. Kf2 {[%emt 0:03:10]
} Kg8 {[%emt 0:02:14]} 30. h4 {[%emt 0:03:50]} Bc3 {[%emt 0:08:06]} 31. Rd1 {
[%emt 0:01:11]} Re4 {[%emt 0:00:33]} 32. Rd7 {[%emt 0:01:10]} Be5 {[%emt 0:02:
44]} 33. Rxa7 {[%emt 0:01:55]} Rxc4 {[%emt 0:01:40]} 34. Bxb6 {[%emt 0:00:26]}
Rc6 {[%emt 0:02:09]} 35. Re1 {[%emt 0:00:45]} Rxb6 {[%emt 0:01:04]} 36. Rxe5 {
[%emt 0:00:04]} Rb2+ {[%emt 0:00:04]} 37. Ke3 {[%emt 0:00:35]} Re2+ {[%emt 0:
00:08]} 0-1

[Event "FIDE Womens Grand Swiss 2021"]
[Site "Riga"]
[Date "2021.10.30"]
[Round "4.10"]
[White "Sargsyan, Anna M."]
[Black "Vantika Agrawal"]
[Result "1/2-1/2"]
[ECO "B51"]
[WhiteElo "2402"]
[BlackElo "2322"]
[Annotator "ChessBase"]
[PlyCount "59"]
[EventDate "2021.10.27"]
[EventType "swiss"]
[EventCountry "LAT"]
[Tiebreak "Cut1 Buchholz+Sonneborn-Berger (Swiss)"]
[SourceTitle "playchess.com"]
[Source "ChessBase"]
[SourceQuality "1"]
[TimeControl "40/6000+30:20/3000+30:900+30"]

1. e4 {[%emt 0:10:09]} c5 {[%emt 0:10:48]} 2. Nf3 {[%emt 0:00:14]} d6 {[%emt 0:
00:12]} 3. Bb5+ {[%emt 0:00:08]} Nd7 {[%emt 0:00:28]} 4. O-O {[%emt 0:01:00]}
a6 {[%emt 0:00:17]} 5. Bd3 {[%emt 0:00:09]} Ngf6 {[%emt 0:00:17]} 6. Re1 {
[%emt 0:00:09]} e6 {[%emt 0:01:04]} 7. c3 {[%emt 0:01:41]} b5 {[%emt 0:00:49]}
8. Bc2 {[%emt 0:00:08]} c4 {[%emt 0:01:01]} 9. b3 {[%emt 0:01:15]} Qc7 {
[%emt 0:30:02]} 10. Qe2 {[%emt 0:00:43]} Be7 {[%emt 0:04:18]} 11. bxc4 {
[%emt 0:02:28]} bxc4 {[%emt 0:00:21]} 12. Na3 {[%emt 0:00:05]} Nb6 {[%emt 0:00:
37]} 13. Rb1 {[%emt 0:02:56]} O-O {[%emt 0:05:43]} 14. e5 {[%emt 0:07:10]} Nfd5
{[%emt 0:02:32]} 15. exd6 {[%emt 0:21:01]} Bxd6 {[%emt 0:02:01]} 16. Ne5 {
[%emt 0:00:31]} Bxe5 {[%emt 0:08:43]} 17. Qxe5 {[%emt 0:00:06]} Qxe5 {[%emt 0:
00:07]} 18. Rxe5 {[%emt 0:00:07]} Bd7 {[%emt 0:01:07]} 19. d3 {[%emt 0:05:41]}
Bb5 {[%emt 0:05:55]} 20. dxc4 {[%emt 0:06:13]} Nxc4 {[%emt 0:00:28]} 21. Rh5 {
[%emt 0:06:20]} g6 {[%emt 0:06:57]} 22. Rh3 {[%emt 0:00:06]} Nxa3 {[%emt 0:01:
04]} 23. Bxa3 {[%emt 0:00:02]} Rfc8 {[%emt 0:00:09]} 24. Bb2 {[%emt 0:01:51]}
Bc4 {[%emt 0:01:30]} 25. Ra1 {[%emt 0:05:50]} Rab8 {[%emt 0:01:31]} 26. Bc1 {
[%emt 0:00:03]} Be2 {[%emt 0:01:43]} 27. Bb3 {[%emt 0:00:08]} Bc4 {[%emt 0:02:
43]} 28. Bc2 {[%emt 0:00:49]} Be2 {[%emt 0:04:17]} 29. Bb3 {[%emt 0:00:05]} Bc4
{[%emt 0:01:04]} 30. Bc2 {[%emt 0:01:18]} 1/2-1/2